[Event "Romanian Championship Open 2025"]
[Site "Craiova"]
[Date "2025.02.19"]
[Round "5.2"]
[White "Craciun, Sasha-Matei"]
[Black "Magold, Filip"]
[Result "0-1"]
[Annotator "RC"]
[ECO "B12"]
[WhiteElo "2257"]
[BlackElo "2431"]
[PlyCount "80"]
[EventDate "2025.02.12"]
[EventType "swiss"]
[EventCountry "ROU"]
[SourceTitle "playchess.com"]
[Source "ChessBase"]
[SourceQuality "1"]
[TimeControl "40/5400+30:900+30"]

1. e4 {[%emt 0:00:30]} c6 {[%emt 0:00:21]} 2. d4 {[%emt 0:00:06]} d5 {[%emt 0:00:04]} 3. e5 {[%emt 0:00:35]} Bf5 {[%emt 0:00:15]} 4. h4 {[%emt 0:00:29]} h5 {[%emt 0:00:04]} 5. Bd3 {[%emt 0:00:04]} Bxd3 {[%emt 0:00:04]} 6. Qxd3 {[%emt 0:00:04]} e6 {[%emt 0:00:05]} 7. Nf3 {[%emt 0:00:21]} Qa5+ {[%emt 0:00:17]} 8. Nbd2 {[%emt 0:00:09]} Qa6 {[%emt 0:00:05]} 9. c4 {[%emt 0:00:20]} Bb4 {[%emt 0:00:04]} 10. O-O {[%emt 0:01:53]} Ne7 {[%emt 0:00:04]} 11. b3 {[%emt 0:03:11]} c5 {[%emt 0:00:15]} 12. Bb2 {[%emt 0:05:10]} cxd4 {[%emt 0:00:14]} 13. Qxd4 {[%emt 0:06:17]} Nbc6 {[%emt 0:12:35]} 14. Qf4 {[%emt 0:02:27]} Rd8 {[%emt 0:14:30]} 15. cxd5 {[%emt 0:10:07]} Nxd5 {[%emt 0:05:31]} 16. Qg5 {[%emt 0:07:08]} Rh6 {[%emt 0:01:56]} 17. Nc4 {[%emt 0:10:07]} Rg6 {[%emt 0:11:42]} 18. Qc1 {[%emt 0:00:31]} b5 {[%emt 0:12:42]} 19. Nd6+ {[%emt 0:03:42]} Bxd6 {[%emt 0:07:19]} 20. exd6 {[%emt 0:00:35]} f6 {[%emt 0:04:45]} 21. Re1 {[%emt 0:15:51]} Rxd6 {[%emt 0:02:45]} 22. a4 {[%emt 0:02:24]} b4 {[%emt 0:02:10]} 23. Qc5 {[%emt 0:01:55]} Nce7 {[%emt 0:00:31]} 24. Re4 {[%emt 0:02:42]} Kf7 {[%emt 0:04:58]} 25. Bd4 {[%emt 0:01:44]} Rc6 {[%emt 0:04:50]} 26. Qb5 {[%emt 0:00:19]} Qc8 {[%emt 0:02:32]} 27. Rae1 {[%emt 0:01:19]} a6 {[%emt 0:00:45]} 28. Qd3 {[%emt 0:00:53]} Rg4 {[%emt 0:01:51]} 29. Be5 {[%emt 0:07:32]} Nf5 {[%emt 0:01:06]} 30. Bh2 {[%emt 0:01:22]} Rc3 {[%emt 0:00:37]} 31. Qe2 {[%emt 0:03:06]} Rxe4 {[%emt 0:00:52]} 32. Qxe4 {[%emt 0:00:01]} Rxb3 {[%emt 0:00:12]} 33. Nd2 {[%emt 0:00:17]} Rc3 {[%emt 0:00:07]} 34. Qe2 {[%emt 0:00:12]} Rc1 {[%emt 0:01:40]} 35. Qxh5+ {[%emt 0:00:18]} g6 {[%emt 0:00:07]} 36. Qe2 {[%emt 0:00:19]} Nd4 {[%emt 0:01:23]} 37. Qf1 {[%emt 0:00:09]} Rxe1 {[%emt 0:00:40]} 38. Qxe1 {[%emt 0:15:21]} Qc3 {[%emt 0:00:09]} 39. Qd1 {[%emt 0:00:00]} b3 {[%emt 0:01:02]} 40. Ne4 {[%emt 0:00:00]} b2 {[%emt 0:00:00]} 0-1

[Event "Romanian Championship Open 2025"]
[Site "Craiova"]
[Date "2025.02.19"]
[Round "5.3"]
[White "Lupulescu, Constantin"]
[Black "David, Alexandru-Vasile"]
[Result "1-0"]
[Annotator "TA"]
[ECO "A13"]
[WhiteElo "2603"]
[BlackElo "2331"]
[PlyCount "113"]
[EventDate "2025.02.12"]
[EventType "swiss"]
[EventCountry "ROU"]
[SourceTitle "playchess.com"]
[Source "ChessBase"]
[SourceQuality "1"]
[TimeControl "40/5400+30:900+30"]

{[%evp 9,113,0,2,0,33,14,3,10,7,14,26,28,9,3,23,0,22,50,33,16,1,-11,-10,-11,-17,-16,12,10,12,12,27,28,28,20,11,14,3,0,63,22,21,24,41,36,71,69,62,61,68,68,68,68,69,68,72,70,79,78,85,85,87,82,109,83,114,117,137,137,138,139,146,176,170,172,193,152,193,144,202,187,189,187,217,208,209,202,290,283,395,371,399,393,431,423,500,493,633,621,742,654,1548,1728,1827,1471,2058,1924]} 1. Nf3 {[%emt 0:00:02]} d5 {[%emt 0:00:43]} 2. e3 {[%emt 0:00:10]} Nf6 {[%emt 0:00:17]} 3. c4 {[%emt 0:00:03]} e6 {[%emt 0:00:28]} 4. b3 {[%emt 0:00:06]} Bd6 {[%emt 0:00:08]} 5. Bb2 {[%emt 0:00:20]} O-O {[%emt 0:00:11]} 6. Nc3 {[%emt 0:00:31]} Nc6 {[%emt 0:00:26]} 7. Be2 {[%emt 0:07:01]} dxc4 {[%emt 0:03:28]} 8. bxc4 {[%emt 0:00:26] The position is equal.} e5 {[%emt 0:00:06]} 9. d3 {[%emt 0:01:41]} a6 {[%emt 0:00:38][%cal Ba7a6,Ba6b5,Bb5b4][%mdl 32]} 10. O-O {[%emt 0:01:03]} Bf5 {[%emt 0:03:10]} 11. Ng5 {[%emt 0:13:22]} Rb8 {[%emt 0:19:26]} 12. Nge4 {[%emt 0:17:36]} b5 {[%emt 0:04:08]} 13. cxb5 {[%emt 0:02:08]} axb5 {[%emt 0:01:37]} 14. Bf3 {[%emt 0:00:45] and Nxf6+ would now be decisive} Na5 {[%emt 0:09:49]} 15. Qd2 {[%emt 0:07:16]} b4 {[%emt 0:07:33]} 16. Nxf6+ {[%emt 0:00:53]} Qxf6 {[%emt 0:00:04]} 17. Ne4 {[%emt 0:00:35]} Bxe4 {[%emt 0:00:29]} 18. Bxe4 {[%emt 0:00:26]} Qe6 {[%emt 0:00:03]} 19. g3 {[%emt 0:17:06]} c5 {[%emt 0:01:15]} 20. Qc2 {[%emt 0:02:08]} Rb5 {[%emt 0:07:41]} 21. Qa4 {[%emt 0:03:32]} Rfb8 {[%emt 0:00:07]} 22. Rab1 {[%emt 0:02:18]} Bf8 {[%emt 0:07:08]} 23. Ba1 {[%emt 0:00:47]} f6 {[%emt 0:03:44]} (23... g6 $11) 24. Rfd1 {[%emt 0:01:49]} Kh8 {[%emt 0:00:05]} 25. Qc2 {[%emt 0:02:37]} Nc6 {[%emt 0:11:44]} 26. Qb3 {[%emt 0:04:34]} (26. a3 {keeps more tension.} bxa3 27. Rxb5 Rxb5 28. Qa4) 26... Qxb3 {[%emt 0:01:25]} 27. axb3 {[%emt 0:00:05]} Na5 {[%emt 0:02:40]} 28. Bd5 {[%emt 0:07:04]} Rd8 {[%emt 0:00:33]} 29. e4 {[%emt 0:00:22][%csl Od5] Strong Square White (d5)} Rb6 {[%emt 0:02:16]} 30. Rd2 {[%emt 0:00:45]} Nc6 {[%emt 0:03:19][%cal Ba5c6,Bc6d4,Bd4b5,Bb5c7][%mdl 32]} 31. Ra2 {[%emt 0:00:23] Wards off Ra6} Nd4 {[%emt 0:00:05]} 32. Bb2 {[%emt 0:03:52]} (32. Bxd4 cxd4 33. Kg2 h5 $11) 32... Rbb8 {[%emt 0:01:55]} 33. Kg2 {[%emt 0:02:40]} Nb5 {[%emt 0:01:03]} 34. Ra5 {[%emt 0:00:26] Black is weak on the light squares} Nc7 {[%emt 0:00:32]} 35. Bc4 {[%emt 0:00:04] White is more active.} Ra8 {[%emt 0:00:06]} 36. Ra4 {[%emt 0:01:14]} Bd6 {[%emt 0:01:55]} 37. Rba1 {[%emt 0:00:13]} g6 {[%emt 0:00:09] [#]} 38. f4 $1 {[%emt 0:00:26][%mdl 512]} Kg7 {[%emt 0:00:30][%cal Bh8g7,Bg7f8,Bf8e7][%mdl 32]} 39. Kf3 {[%emt 0:00:16]} Kf8 {[%emt 0:01:15]} 40. h4 {[%emt 0:00:00][%cal Bh2h4,Bh4h5][%mdl 32]} Ke7 {[%emt 0:00:00] [#]} 41. h5 $1 {[%emt 0:05:42][%mdl 512]} Rh8 {[%emt 0:09:46]} (41... Rxa4 42. bxa4) 42. Rh1 {[%emt 0:02:03]} Raf8 {[%emt 0:00:20]} 43. Raa1 {[%emt 0:05:10]} ({Better is} 43. Kg4 $18) 43... g5 {[%emt 0:01:12]} (43... Kd7 $16 {was necessary.} 44. Kg4 Kc6) 44. fxg5 {[%emt 0:01:09]} fxg5+ {[%emt 0:00:06]} 45. Kg4 {[%emt 0:00:55]} Rf2 {[%emt 0:00:14]} 46. Bc1 {[%emt 0:01:50] A strong pair of Bishops.} h6 {[%emt 0:00:06]} 47. Be3 {[%emt 0:00:48]} Re2 {[%emt 0:00:29]} (47... Rf6 $142 48. Rhc1 Rff8) 48. Kf3 $18 {[%emt 0:00:30]} Rc2 {[%emt 0:00:50]} 49. Rhf1 {[%emt 0:00:27]} Rf8+ {[%emt 0:03:23]} 50. Kg4 {[%emt 0:00:02]} Rxf1 {[%emt 0:00:05]} 51. Rxf1 {[%emt 0:00:03] White is clearly winning.} Ne6 {[%emt 0:00:07]} 52. Kf5 {[%emt 0:02:50]} Nf8 {[%emt 0:00:05]} 53. Rf2 {[%emt 0:01:41]} Rxf2+ {[%emt 0:00:45]} 54. Bxf2 {[%emt 0:00:03]} Nd7 {[%emt 0:00:05]} 55. Kg6 {[%emt 0:00:38]} Nf6 {[%emt 0:00:12]} 56. Kxh6 {[%emt 0:00:11]} Ng4+ {[%emt 0:03:46]} 57. Kg6 {[%emt 0:00:13] Weighted Error Value: White=0.06 (flawless) /Black=0.40  Mistake:       	White=1     	Black=3      Inaccurate:     	White=1     	Black=6      OK:         	White=17    	Black=10     Best:        	White=6     	---} 1-0

[Event "Romanian Championship Open 2025"]
[Site "Craiova"]
[Date "2025.02.19"]
[Round "5.4"]
[White "Nisipeanu, Liviu-Dieter"]
[Black "Serban, Cristian-Stefan"]
[Result "0-1"]
[Annotator "TA"]
[ECO "C54"]
[WhiteElo "2596"]
[BlackElo "2295"]
[PlyCount "72"]
[EventDate "2025.02.12"]
[EventType "swiss"]
[EventCountry "ROU"]
[SourceTitle "playchess.com"]
[Source "ChessBase"]
[SourceQuality "1"]
[TimeControl "40/5400+30:900+30"]

{[%evp 10,72,19,17,15,18,20,8,20,15,25,14,20,10,4,0,0,0,0,-14,-10,-20,52,48,47,46,100,102,279,271,242,260,241,242,247,185,304,286,358,312,240,0,802,802,777,763,640,190,139,0,0,0,56,-4,-17,-20,0,-400,-378,-713,-733,-686,-695,-29991,-29992]} 1. e4 {[%emt 0:00:04]} e5 {[%emt 0:00:59]} 2. Nf3 {[%emt 0:00:05]} Nc6 {[%emt 0:00:07]} 3. Bc4 {[%emt 0:00:06]} Bc5 {[%emt 0:00:09]} 4. d3 {[%emt 0:00:03]} Nf6 {[%emt 0:00:08]} 5. O-O {[%emt 0:00:16]} d6 {[%emt 0:00:29]} 6. c3 {[%emt 0:00:32]} a5 {[%emt 0:00:11] C54: Giuoco Piano: 4 c3 Nf6, main lines with 5 d4 and 5 d3.} 7. Re1 {[%emt 0:01:09]} O-O {[%emt 0:00:34]} 8. h3 {[%emt 0:00:17]} Be6 {[%emt 0:00:34] The position is equal.} 9. Bb5 {[%emt 0:00:29]} Ba7 {[%emt 0:03:04]} 10. Nbd2 {[%emt 0:14:48]} Ne7 {[%emt 0:00:14]} 11. Nf1 {[%emt 0:00:20]} c6 {[%emt 0:01:14]} 12. Ba4 {[%emt 0:00:05]} Ng6 {[%emt 0:01:11]} 13. Ng3 {[%emt 0:02:00]} d5 {[%emt 0:00:58]} 14. exd5 {[%emt 0:01:57]} Nxd5 {[%emt 0:00:07]} 15. Bc2 {[%emt 0:13:09]} Ndf4 $146 {[%emt 0:16:51]} (15... Qb6 $11) ({Predecessor:} 15... Qc7 16. d4 exd4 17. Nxd4 Rae8 18. Re4 Nf6 19. Re1 Bd5 20. Rxe8 Rxe8 21. Bg5 Qe5 {0-1 Puranik,A (2631)-Tabatabaei,M (2707) Sharjah Masters 7th 2024 (5)}) 16. Bxf4 {[%emt 0:03:56]} (16. Nxe5 {looks sharper.} Nxg2 17. Kxg2 Qd5+ 18. Re4) 16... exf4 {[%emt 0:06:40]} 17. Ne4 {[%emt 0:00:38]} Qb6 {[%emt 0:00:21]} ({Black should play} 17... Re8 $14) 18. d4 $16 {[%emt 0:03:49]} Qxb2 $2 {[%emt 0:02:06]} (18... Bd5 $16 {was called for.}) 19. Nfg5 $1 $18 {[%emt 0:01:08] A dynamic duo of knights.} f3 {[%emt 0:18:41]} 20. Nxe6 {[%emt 0:15:06]} (20. Nxf3 Bd5 $14) 20... fxe6 {[%emt 0:00:05]} 21. Rb1 $1 {[%emt 0:00:03]} (21. gxf3 Qb5 $11) 21... Qxa2 {[%emt 0:11:04]} 22. Ng5 {[%emt 0:01:33]} Kh8 {[%emt 0:00:42]} (22... fxg2 $2 23. Qh5 (23. Rxe6 Qc4 $18) 23... h6 24. Qxg6 $18 (24. Bxg6 $2 Qxf2+ 25. Kh2 g1=R#)) (22... Qd5 $142 23. Nxe6 Rf7) 23. Rxb7 {[%emt 0:06:13]} (23. gxf3 Qd5 24. Nxe6 Rf6 $17) (23. Nxf3 $6 Nf4 24. Rxb7 Qc4 $18) 23... Rf6 {[%emt 0:08:59]} 24. Nf7+ {[%emt 0:05:57]} (24. gxf3 Qc4 $16) 24... Kg8 {[%emt 0:00:15]} 25. Ng5 $2 {[%emt 0:16:28]} (25. Bb3 $18 Qa3 26. Qa1 (26. Bxe6 Qxc3 27. Ng5+ Kh8 $16) (26. Ng5 Kh8 $18) 26... Qxa1 27. Rxa1) 25... fxg2 $2 {[%emt 0:05:18][%mdl 8192] [#]} (25... Kh8 $11) 26. Rxe6 $1 {[%emt 0:00:58][%mdl 512]} Rxf2 {[%emt 0:03:20]} 27. Kxf2 {[%emt 0:02:36]} Rf8+ {[%emt 0:00:04]} 28. Kxg2 $2 {[%emt 0:05:39]} (28. Nf3) 28... Qd5+ {[%emt 0:02:03]} 29. Be4 {[%emt 0:02:15]} (29. Nf3 $1 $16 {And now Rxg6 would win.} Rxf3 30. Re8+ Rf8+ 31. Re4 Qg5+ 32. Qg4 Qd2+ 33. Re2 Qxe2+ 34. Qxe2 Nf4+ 35. Kf3 Nxe2+ 36. Kxe2) 29... Qxg5+ $11 {[%emt 0:00:07]} 30. Kh1 $1 {[%emt 0:00:03][%cal Od1g1]} Bb8 {[%emt 0:03:06]} (30... Qg3 $11 31. Bg2 (31. Rxa7 $2 Qxh3+ 32. Kg1 Qxe6 $19) 31... Bb8) 31. Bxg6 {[%emt 0:00:42]} (31. Bxc6 $2 Qg3 32. Re2 Qxh3+ 33. Kg1 Qg3+ (33... Qxc3 34. Qb3+ Qxb3 35. Rxb3 $14) 34. Rg2 Qe3+ 35. Kh1 Kh8 36. Rxb8 Rxb8 $19) (31. Qg1 $1 $14 Bg3 32. Rxc6) 31... hxg6 {[%emt 0:01:54]} 32. Qe1 $1 {[%emt 0:02:06]} (32. Rxc6 {is a self mate.} Qd5+ 33. Kg1 Bh2+ (33... Qxc6 $2 34. Qb3+ Kh7 35. Rxb8 $19) 34. Kxh2 Rf2+ (34... Qxc6 $2 35. Rb2 $19) 35. Kg3 Qg2+ (35... Qxc6 $2 {loses.} 36. Qb3+ Kh7 37. Kxf2 $18) 36. Kh4 Rf4+ (36... Qxc6 $2 37. Rb8+ Kh7 38. Qg4 $19)) 32... Qh5 $40 {[%emt 0:07:07][%mdl 1152] Black has compensation. White needs to defend precisely. Chess con chili.} 33. Re3 {[%emt 0:00:45][%mdl 8192]} (33. Kg1 $1 $11 {and White is okay.}) 33... Bf4 $19 {[%emt 0:00:27]} 34. Rd3 {[%emt 0:00:25]} (34. Rbe7 Bxe3 35. Rxe3) 34... Qd5+ {[%emt 0:00:38]} 35. Kg1 {[%emt 0:00:05] [#]} Qa2 $1 {[%emt 0:02:08]} 36. Qf2 {[%emt 0:02:08] [#]} Bh2+ $1 {[%emt 0:00:20][%mdl 512] Quite a comeback for Black.   Weighted Error Value: White=0.65/Black=0.34  Loses game:     	White=1     	Black=2      Missed win:     	White=1     	---        Mistake:       	White=2     	Black=4      OK:         	White=6     	Black=7      Best:        	White=2     	Black=3      Strong:       	White=4     	---} 0-1

[Event "Romanian Championship Open 2025"]
[Site "Craiova"]
[Date "2025.02.19"]
[Round "5.5"]
[White "Cnejev, Vladimir-Alexandru"]
[Black "Jianu, Vlad-Cristian"]
[Result "1/2-1/2"]
[Annotator "TA"]
[ECO "B31"]
[WhiteElo "2300"]
[BlackElo "2467"]
[PlyCount "60"]
[EventDate "2025.02.12"]
[EventType "swiss"]
[EventCountry "ROU"]
[SourceTitle "playchess.com"]
[Source "ChessBase"]
[SourceQuality "1"]
[TimeControl "40/5400+30:900+30"]

{[%evp 19,60,14,16,22,20,18,20,31,23,23,30,4,35,35,40,16,27,31,44,45,53,42,47,35,31,19,29,34,53,1,0,0,0,-10,0,-24,-9,-26,-30,-22,-12,-6,0]} 1. e4 {[%emt 0:00:03]} c5 {[%emt 0:00:04]} 2. Nf3 {[%emt 0:00:10]} Nc6 {[%emt 0:00:05]} 3. Bb5 {[%emt 0:00:05]} g6 {[%emt 0:00:05]} 4. Bxc6 {[%emt 0:00:05]} dxc6 {[%emt 0:00:05]} 5. d3 {[%emt 0:00:04]} Bg7 {[%emt 0:00:23]} 6. h3 {[%emt 0:00:10]} e5 {[%emt 0:04:11]} 7. Be3 {[%emt 0:00:29]} Qe7 {[%emt 0:00:07]} 8. Nc3 {[%emt 0:01:41]} Nf6 {[%emt 0:00:30][%cal Bg8f6,Bf6d7,Bd7f8,Bf8e6,Be6d4][%mdl 32]} 9. Qd2 {[%emt 0:00:07]} Nd7 {[%emt 0:04:10]} 10. Bh6 {[%emt 0:00:22]} f6 {[%emt 0:00:48]} 11. Bxg7 {[%emt 0:02:09] B31: Sicilian: 2...Nc6 3 Bb5 g6.} Qxg7 {[%emt 0:00:05]} 12. Qe3 {[%emt 0:00:28]} Qe7 {[%emt 0:03:30]} 13. Nd2 {[%emt 0:04:00]} Nf8 {[%emt 0:01:18]} 14. Ne2 {[%emt 0:00:52]} Ne6 {[%emt 0:05:36]} 15. f4 {[%emt 0:02:44]} exf4 {[%emt 0:03:39]} 16. Nxf4 {[%emt 0:00:11]} Nd4 {[%emt 0:00:09]} 17. Rc1 $146 {[%emt 0:13:39]} (17. O-O-O Bd7 18. Ne2 Nb5 19. Rhf1 O-O-O 20. Rde1 b6 21. Nf4 Rde8 22. Qg3 Nd6 23. Nf3 {½-½ Kovalev,V (2595)-Pascua,H (2401) Subic Bay op 2016 (8)}) 17... O-O {[%emt 0:11:50]} 18. O-O {[%emt 0:08:30][%cal Ob2b4]} Nf5 {[%emt 0:11:45]} 19. Qf2 {[%emt 0:05:01]} (19. exf5 $2 Qxe3+ 20. Rf2 g5 $19 (20... Bxf5 $2 21. Rcf1 $19)) 19... Ng7 {[%emt 0:00:06]} 20. Rce1 {[%emt 0:01:06][%cal Bc1e1,Be1e3,Be3f3][%mdl 32]} Be6 {[%emt 0:03:54]} 21. a3 {[%emt 0:04:32]} Rae8 {[%emt 0:02:22]} 22. g4 {[%emt 0:10:32]} Qd6 {[%emt 0:05:49]} 23. Re3 {[%emt 0:02:38]} b6 {[%emt 0:04:48]} 24. c3 {[%emt 0:02:32]} ({White should play} 24. Rf3 $14) 24... Bc8 $11 {[%emt 0:07:47]} 25. Rf3 {[%emt 0:11:19]} Ba6 {[%emt 0:04:49]} 26. c4 {[%emt 0:08:29][%cal Ob2b4]} Bc8 {[%emt 0:00:07]} 27. Ne2 {[%emt 0:03:37][%cal Rf3f6]} Rd8 {[%emt 0:05:25]} 28. Kg2 {[%emt 0:04:14]} ({But not} 28. Rxf6 Qxf6 29. Qxf6 Rxf6 30. Rxf6 Rxd3 $19) 28... Ne6 {[%emt 0:05:17]} 29. Qg3 {[%emt 0:08:03]} Qxg3+ {[%emt 0:02:40]} 30. Kxg3 {[%emt 0:00:25]} Kg7 {[%emt 0:00:59] Weighted Error Value: White=0.10 (very precise) /Black=0.07 (flawless)   Mistake:       	White=1     	---        Inaccurate:     	---       	Black=1      OK:         	White=9     	Black=7} 1/2-1/2

[Event "Romanian Championship Open 2025"]
[Site "Craiova"]
[Date "2025.02.19"]
[Round "5.6"]
[White "Dobre, Claudiu-Cristian"]
[Black "Filip, Lucian-Ioan"]
[Result "0-1"]
[Annotator "RC"]
[ECO "A30"]
[WhiteElo "2279"]
[BlackElo "2328"]
[PlyCount "110"]
[EventDate "2025.02.12"]
[EventType "swiss"]
[EventCountry "ROU"]
[SourceTitle "playchess.com"]
[Source "ChessBase"]
[SourceQuality "1"]
[TimeControl "40/5400+30:900+30"]

1. c4 {[%emt 0:00:04]} Nf6 {[%emt 0:00:04]} 2. Nc3 {[%emt 0:00:05]} c5 {[%emt 0:00:02]} 3. Nf3 {[%emt 0:00:09]} e6 {[%emt 0:00:14]} 4. g3 {[%emt 0:00:12]} b6 {[%emt 0:00:49]} 5. Bg2 {[%emt 0:00:10]} Bb7 {[%emt 0:00:03]} 6. O-O {[%emt 0:00:08]} Be7 {[%emt 0:00:48]} 7. d4 {[%emt 0:04:34]} cxd4 {[%emt 0:00:52]} 8. Qxd4 {[%emt 0:00:07]} d6 {[%emt 0:05:55]} 9. Bg5 {[%emt 0:00:28]} a6 {[%emt 0:11:01]} 10. Bxf6 {[%emt 0:00:59]} Bxf6 {[%emt 0:00:03]} 11. Qf4 {[%emt 0:00:06]} O-O {[%emt 0:04:59]} 12. Rfd1 {[%emt 0:00:52]} Be7 {[%emt 0:00:12]} 13. Ne4 {[%emt 0:07:32]} Bxe4 {[%emt 0:00:27]} 14. Qxe4 {[%emt 0:00:05]} Ra7 {[%emt 0:00:20]} 15. Nd4 {[%emt 0:07:33]} Rc7 {[%emt 0:03:59]} 16. b3 {[%emt 0:01:55]} Rc5 {[%emt 0:09:19]} 17. Rac1 {[%emt 0:42:44]} Qc7 {[%emt 0:09:12]} 18. Rc2 {[%emt 0:02:43]} Qc8 {[%emt 0:25:00]} 19. b4 {[%emt 0:06:41]} Rc7 {[%emt 0:02:19]} 20. Rdc1 {[%emt 0:05:08]} Qd7 {[%emt 0:07:11]} 21. Qe3 {[%emt 0:13:55]} Rfc8 {[%emt 0:04:32]} 22. Bh3 {[%emt 0:01:26]} Kh8 {[%emt 0:03:05]} 23. Nxe6 {[%emt 0:00:24]} fxe6 {[%emt 0:00:04]} 24. Bxe6 {[%emt 0:00:47]} Bg5 {[%emt 0:01:26]} 25. Bxd7 {[%emt 0:02:39]} Bxe3 {[%emt 0:00:07]} 26. Bxc8 {[%emt 0:00:10]} Bxc1 {[%emt 0:00:03]} 27. Rxc1 {[%emt 0:00:03]} Rxc8 {[%emt 0:00:06]} 28. Rd1 {[%emt 0:00:03]} Rd8 {[%emt 0:07:06]} 29. c5 {[%emt 0:01:13]} bxc5 {[%emt 0:03:57]} 30. bxc5 {[%emt 0:00:05]} d5 {[%emt 0:01:35]} 31. e4 {[%emt 0:02:10]} d4 {[%emt 0:00:11]} 32. Kf1 {[%emt 0:00:24]} Nc6 {[%emt 0:00:31]} 33. Rb1 {[%emt 0:00:29]} a5 {[%emt 0:00:52]} 34. a3 {[%emt 0:00:45]} Kg8 {[%emt 0:00:08]} 35. f4 {[%emt 0:00:07]} Rb8 {[%emt 0:00:52]} 36. Rxb8+ {[%emt 0:00:45]} Nxb8 {[%emt 0:00:02]} 37. Ke2 {[%emt 0:00:07]} a4 {[%emt 0:00:42]} 38. Kd3 {[%emt 0:01:00]} Nc6 {[%emt 0:00:03]} 39. Kc4 {[%emt 0:00:08]} Kf7 {[%emt 0:00:11]} 40. Kd3 {[%emt 0:00:00]} Ke6 {[%emt 0:00:00]} 41. Kc4 {[%emt 0:07:15]} Kf6 {[%emt 0:12:23]} 42. Kd3 {[%emt 0:00:15]} g5 {[%emt 0:04:17]} 43. h3 {[%emt 0:03:19]} Kg6 {[%emt 0:00:41]} 44. Kc4 {[%emt 0:00:54]} gxf4 {[%emt 0:00:25]} 45. gxf4 {[%emt 0:00:06]} Kh5 {[%emt 0:00:34]} 46. Kd3 {[%emt 0:07:05]} Kh4 {[%emt 0:00:14]} 47. f5 {[%emt 0:00:35]} Kg5 {[%emt 0:00:28]} 48. Kc4 {[%emt 0:00:31]} Kf6 {[%emt 0:00:32]} 49. Kd3 {[%emt 0:00:07]} Ke5 {[%emt 0:00:08]} 50. h4 {[%emt 0:00:50]} Nd8 {[%emt 0:01:45]} 51. h5 {[%emt 0:00:28]} h6 {[%emt 0:00:34]} 52. Ke2 {[%emt 0:00:29]} Kxe4 {[%emt 0:00:11]} 53. f6 {[%emt 0:00:40]} Kd5 {[%emt 0:00:06]} 54. Kd3 {[%emt 0:00:17]} Kxc5 {[%emt 0:00:13]} 55. Kd2 {[%emt 0:00:37]} Kd5 {[%emt 0:00:31]} 0-1

[Event "Romanian Championship Open 2025"]
[Site "Craiova"]
[Date "2025.02.19"]
[Round "5.7"]
[White "Toma, Iustin"]
[Black "Sachilaru, Alexandru"]
[Result "0-1"]
[Annotator "RC"]
[ECO "C41"]
[WhiteElo "2118"]
[BlackElo "2305"]
[PlyCount "84"]
[EventDate "2025.02.12"]
[EventType "swiss"]
[EventCountry "ROU"]
[SourceTitle "playchess.com"]
[Source "ChessBase"]
[SourceQuality "1"]
[TimeControl "40/5400+30:900+30"]

1. e4 {[%emt 0:00:30]} d6 {[%emt 0:00:15]} 2. d4 {[%emt 0:00:04]} Nf6 {[%emt 0:00:13]} 3. Nc3 {[%emt 0:00:07]} e5 {[%emt 0:00:26]} 4. Nf3 {[%emt 0:00:06]} Nbd7 {[%emt 0:00:25]} 5. Bc4 {[%emt 0:00:12]} Be7 {[%emt 0:00:27]} 6. O-O {[%emt 0:00:13]} O-O {[%emt 0:00:27]} 7. Re1 {[%emt 0:00:23]} a6 {[%emt 0:00:47]} 8. a4 {[%emt 0:00:58]} b6 {[%emt 0:00:42]} 9. h3 {[%emt 0:03:33]} Bb7 {[%emt 0:00:45]} 10. d5 {[%emt 0:03:50]} a5 {[%emt 0:03:48]} 11. Qe2 {[%emt 0:09:08]} Nc5 {[%emt 0:05:19]} 12. Rd1 {[%emt 0:15:53]} Bc8 {[%emt 0:07:49]} 13. Bb5 {[%emt 0:19:40]} Kh8 {[%emt 0:26:15]} 14. Ra3 {[%emt 0:05:50]} Ng8 {[%emt 0:02:34]} 15. Be3 {[%emt 0:00:26]} f5 {[%emt 0:03:12]} 16. Bxc5 {[%emt 0:01:54]} bxc5 {[%emt 0:01:52]} 17. exf5 {[%emt 0:00:50]} Bxf5 {[%emt 0:01:31]} 18. Ne4 {[%emt 0:13:46]} Bg6 {[%emt 0:03:57]} 19. Re3 {[%emt 0:08:56]} Nh6 {[%emt 0:01:27]} 20. Ng3 {[%emt 0:00:36]} Bg5 {[%emt 0:02:38]} 21. Nxg5 {[%emt 0:01:18]} Qxg5 {[%emt 0:00:06]} 22. Bd3 {[%emt 0:08:29]} Rf4 {[%emt 0:04:13]} 23. Bxg6 {[%emt 0:01:50]} Qxg6 {[%emt 0:00:08]} 24. Re4 {[%emt 0:01:25]} Raf8 {[%emt 0:00:48]} 25. Rf1 {[%emt 0:00:35]} Ng8 {[%emt 0:02:11]} 26. Qe3 {[%emt 0:01:52]} h5 {[%emt 0:06:58]} 27. Rxf4 {[%emt 0:00:55]} Rxf4 {[%emt 0:01:45]} 28. b3 {[%emt 0:00:30]} Nf6 {[%emt 0:05:16]} 29. c4 {[%emt 0:00:26]} Qc2 {[%emt 0:02:49]} 30. Re1 {[%emt 0:00:42]} h4 {[%emt 0:02:01]} 31. Re2 {[%emt 0:00:26]} Qb1+ {[%emt 0:02:10]} 32. Re1 {[%emt 0:00:12]} Qc2 {[%emt 0:00:45]} 33. Re2 {[%emt 0:00:09]} Qg6 {[%emt 0:02:24]} 34. Nf1 {[%emt 0:00:13]} Rd4 {[%emt 0:00:42]} 35. Qc3 {[%emt 0:01:21]} Nh5 {[%emt 0:01:01]} 36. Qf3 {[%emt 0:00:40]} Nf4 {[%emt 0:01:15]} 37. Re3 {[%emt 0:00:28]} Qb1 {[%emt 0:03:13]} 38. g3 {[%emt 0:00:30]} Ng6 {[%emt 0:03:37]} 39. Kg2 {[%emt 0:00:30]} Rd1 {[%emt 0:00:55]} 40. Qe2 {[%emt 0:00:19]} Kg8 {[%emt 0:00:00]} 41. Rf3 {[%emt 0:00:32]} Re1 {[%emt 0:02:28]} 42. Qd3 {[%emt 0:00:09]} e4 {[%emt 0:00:07]} 0-1